Cogmind - Beta 17 @@@ ROGUE MODE // 2026.07.27 @ 13:30:31 Player: teag2 Result: Destroyed by Y-54 Guardian with Gatling Laser Performance ------------- Evolutions (0) 0 Regions Visited (3) 600 Robots Destroyed (34) 170 Value Destroyed (712) 712 Prototype IDs (0) 0 Alien Tech Used (0) 0 Bonus (0) 0 TOTAL SCORE: 1482 Bonus ------- None Cogmind --------- Core Integrity 0/250 Matter 283/300 Energy 100/100 System Corruption 0% Temperature Cool (6) Movement Rolling (130) Ox2 Location -7/Recycling Parts ------- > --- POWER (1) -------- (None) > --- PROPULSION (2) --- Subdweller Monowheel VTOL Module > --- UTILITY (2) ------ High-capacity Storage Unit Light Armor Plating > --- WEAPON (2) ------- Particle Gun Subdweller Beam Cannon > --- INVENTORY (20) --- Maxwheels VTOL Module VTOL Module VTOL Module Heat Sink Subdweller Optics Subdweller Optics Signal Interpreter Light Armor Plating Light Armor Plating EM Pulse Gun Particle Gun Subdweller Machine Gun Mining Laser Enhanced Flamer Peak State ------------ > --- POWER ------------ Light Ion Engine > --- PROPULSION ------- Light Treads Subdweller Monowheel > --- UTILITY ---------- High-capacity Storage Unit Light Armor Plating > --- WEAPON ----------- Particle Gun Particle Gun > --- INVENTORY -------- Maxwheels VTOL Module VTOL Module VTOL Module VTOL Module Heat Sink Signal Interpreter Light Armor Plating Light Armor Plating Light Armor Plating EM Pulse Gun Particle Gun Particle Gun Mining Laser Enhanced Flamer [Rating: 15] Favorites ----------- Power Light Ion Engine Engine Light Ion Engine Propulsion Light Treads Treads Light Treads Leg Aluminum Leg Wheel Subdweller Monowheel Flight Unit VTOL Module Utility Light Armor Plating Storage High-capacity Storage Unit Protection Light Armor Plating Weapon Particle Gun Energy Gun Particle Gun Energy Cannon Subdweller Beam Cannon Ballistic Gun Assault Rifle Special Weapon Mining Laser Build | -11 -10 -10 -7 ------- Run | Yrd Mat Sub Rec Slots Evolved . | . . . . Power . | . . . . Propulsion . | . . . . Utility . | . . . . Weapon . | . . . . Parts Attached 20 | 1 8 11 . Power 1 | . . 1 . Engine 1 | . . 1 . Core . | . . . . Reactor . | . . . . Propulsion 7 | . 2 5 . Treads 3 | . 2 1 . Leg . | . . . . Wheel 2 | . . 2 . Hover . | . . . . Flight 2 | . . 2 . Utility 4 | . 2 2 . Device . | . . . . Storage 1 | . 1 . . Processor . | . . . . Hackware . | . . . . Protection 3 | . 1 2 . Artifact . | . . . . Weapon 8 | 1 4 3 . Energy Gun 4 | . 2 2 . Energy Cannon 1 | . . 1 . Ballistic Gun 2 | 1 1 . . Ballistic Cannon . | . . . . Launcher . | . . . . Special Weapon 1 | . 1 . . Impact Weapon . | . . . . Slashing Weapon . | . . . . Piercing Weapon . | . . . . Special Melee Weapon . | . . . . Unidentified Prototypes . | . . . . Parts Lost 8 | . 3 5 . Power 2 | . 1 1 . Propulsion 3 | . . 3 . Utility 1 | . . 1 . Weapon 2 | . 2 . . Highest Loss Streak 3 | . 3 2 . To Critical Strikes . | . . . . Average Backups 14 | 6 14 14 15 Power . | 1 1 . . Propulsion 4 | 4 4 4 4 Utility 5 | . 4 5 6 Weapon 4 | 1 4 4 5 Tool/Special . | . . . . Unused Backups 20 | . 8 . 12 Power . | . . . . Propulsion 7 | . 4 . 3 Utility 10 | . 4 . 6 Weapon 3 | . . . 3 Tool/Special . | . . . . Average Slot Usage (%) 93 | . 95 91 85 Engine 8 | . 11 6 . Treads 19 | . 25 13 . Leg 1 | . 2 . . Wheel 2 | . . 4 14 Flight 4 | . . 9 14 Storage 14 | . 14 14 14 Protection 13 | . 12 14 14 Energy Gun 14 | . 5 23 14 Energy Cannon 1 | . . 1 14 Ballistic Gun 10 | . 22 . . Special Weapon 1 | . . 2 . Peak Build Rating 15 | 6 10 15 15 Average Rating 11 | 6 8 13 15 On Entrance 9 | 6 6 10 15 Avg Prop Armor Cover (%) 8 | . . 8 3 Naked Turns . | . . . . Heaviest Build 54 | 12 50 54 54 Greatest Support 40 | 20 40 40 20 Greatest Overweight (x) 16 | . 1 16 2 Average Overweight (x) 1 | . . 2 2 Largest Inventory Capacity 20 | 8 20 20 20 Average Capacity 19 | 8 18 20 20 Most Carried 20 | 6 17 20 18 Average Carried 15 | 6 14 16 18 Final Capacity 20 | 8 20 20 20 Final Carried 18 | 6 16 18 18 Class Distribution -------------------- 100% | Mutant Dominant Class ---------------- Mutant | -10/Materials Mutant | -10/Subcaves Mutant | -7/Recycling Resources | -11 -10 -10 -7 ----------- Run | Yrd Mat Sub Rec Matter Collected 902 | 186 502 214 . Remotely . | . . . . Salvage Created 1286 | . 919 367 . Parts 60 | . 45 15 . Haulers Intercepted 2 | . 2 . . Recyclers Shooed 4 | . 4 . . Parts Field Recycled . | . . . . Retrieved Matter . | . . . . Parts Self-Destructed 11 | . . 11 . Prevented . | . . . . Parts Restored . | . . . . Kills | -11 -10 -10 -7 ------- Run | Yrd Mat Sub Rec Combat Hostiles Destroyed 23 | . 14 9 . Guns 23 | . 14 9 . Classes Destroyed 9 | . 8 1 . Worker 1 | . 1 . . Builder 1 | . 1 . . Hauler 2 | . 2 . . Recycler 4 | . 4 . . Mechanic 1 | . 1 . . Watcher 2 | . 2 . . Swarmer 9 | . 9 . . Grunt 5 | . 5 . . Subdweller 9 | . . 9 . Best Kill Streak 4 | . 4 3 . Combat Bots Only 3 | . 3 3 . Max Kills in Single Turn 2 | . 2 1 . Gunslinging 1 | . 1 . . Exploded . | . . . . Melee . | . . . . Uniques/NPCs Destroyed . | . . . . Combat | -11 -10 -10 -7 -------- Run | Yrd Mat Sub Rec Hostile Shots Fired 154 | . 102 40 12 Missed 35 | . 24 10 1 Hits 119 | . 78 30 11 Projectile 119 | . 78 30 11 Critical Strikes 1 | . . 1 . Damage Taken 1469 | . 710 687 72 Core 250 | . 73 148 29 Absorbed by Shields . | . . . . Core Remaining (%) 100 | 100 . . . Volleys Fired 157 | . 89 68 . Largest 2 | . 2 2 . Hottest 130 | . 130 130 . Shots Fired 261 | . 161 100 . Gun 218 | . 153 65 . Cannon 16 | . . 16 . Launcher . | . . . . Special 27 | . 8 19 . Kinetic 149 | . 149 . . Thermal 112 | . 12 100 . Explosive . | . . . . Electromagnetic . | . . . . Robot Hit Streak 21 | . 8 21 . Robot Miss Streak 5 | . 5 2 . Penetration Max . | . . . . Secondary Targets 4 | . 3 1 . Max Gunslinging Chain 1 | . 1 1 . Shots Hit Robots 139 | . 83 56 . Core Hits 57 | . 39 18 . Critical Kills . | . . . . Critical Parts Destroyed . | . . . . Critical Strikes 3 | . . 3 . Burn 3 | . . 3 . Melee Attacks . | . . . . Impact . | . . . . Slashing . | . . . . Piercing . | . . . . Sneak Attacks . | . . . . Combat Hostiles . | . . . . Follow-up Attacks . | . . . . Damage Inflicted 2023 | . 1192 831 . Guns 2004 | . 1173 831 . Cannons . | . . . . Explosions . | . . . . Melee . | . . . . Ramming 19 | . 19 . . Kinetic 1146 | . 1146 . . Thermal 858 | . 27 831 . Explosive . | . . . . Electromagnetic . | . . . . Impact . | . . . . Slashing . | . . . . Piercing . | . . . . Highest Corruption . | . . . . Average Corruption . | . . . . Corruption Purged . | . . . . Corruption Blocked . | . . . . Overload Shots . | . . . . Overflow Damage . | . . . . Projectiles . | . . . . Explosions . | . . . . Melee . | . . . . Knockbacks 1 | . 1 . . Impact 1 | . 1 . . Kinetic . | . . . . Secondary . | . . . . Self-Inflicted Damage . | . . . . Shots . | . . . . Rammed 2 | . 2 . . Targets Rammed 2 | . 2 . . Kicked . | . . . . Crushed . | . . . . Highest Temperature 150 | . 132 150 . Average Temperature 48 | . 36 56 . Received Heat Transfer 285 | . 153 108 24 Siege Activations . | . . . . Martial Activations . | . . . . Shielding Activations . | . . . . Robots Disrupted . | . . . . Combat Hostiles . | . . . . Robots Corrupted . | . . . . Combat Hostiles . | . . . . Parts Fried . | . . . . Impact Corruptions . | . . . . Robots Melted . | . . . . Combat Hostiles . | . . . . Parts Melted 2 | . . 2 . Heat Transferred 2294 | . 74 2220 . Parts Sabotaged . | . . . . Parts Stolen . | . . . . Parts Stripped . | . . . . Power Chain Reactions . | . . . . Alert | -11 -10 -10 -7 ------- Run | Yrd Mat Sub Rec Maximum Alert Level . | . . . . Low Security (%) 100 | 100 100 . 100 Level 1 . | . . . . Level 2 . | . . . . Level 3 . | . . . . Level 4 . | . . . . Level 5 . | . . . . High Security . | . . . . Max Security . | . . . . Peak Influence 98 | . 98 . 85 Initial 5 | . . . 5 Average 33 | . 33 . 63 Influence Increases 606 | . 501 15 90 Destroy 0b10 Robot/C 280 | . 280 . . Destroy 0b10 Robot/NC 55 | . 55 . . Destroy Leader 58 | . 58 . . Successful Hack 69 | . 69 . . Select Force Hacks 120 | . 30 . 90 Destroy Structure 9 | . 9 . . Lose Combat Pursuer 15 | . . 15 . Influence Decreases 531 | . 454 50 27 Entered New Map 30 | . . 23 7 Time Decay 471 | . 424 27 20 Lost Part 30 | . 30 . . Squads Dispatched 1 | . 1 . . Investigation 1 | . 1 . . Extermination . | . . . . Reinforcement . | . . . . Assault . | . . . . Garrison . | . . . . Intercept . | . . . . Searches Triggered . | . . . . Construction Impeded . | . . . . Haulers Reinforced . | . . . . Active Scanning Responses . | . . . . Cargo Convoy Interrupts . | . . . . Stealth | -11 -10 -10 -7 --------- Run | Yrd Mat Sub Rec Distress Signals 3 | . 3 . . Communications Jammed . | . . . . Distress Signals . | . . . . Times Spotted 44 | . 30 13 1 Peak Tracking Total 5 | . 5 3 1 Tactical Retreats 1 | . . 1 . Traps | -11 -10 -10 -7 ------- Run | Yrd Mat Sub Rec Traps Triggered 1 | . . 1 . Indirectly . | . . . . Trap Hack Attempts . | . . . . Triggered . | . . . . Disarmed . | . . . . Reprogrammed . | . . . . Reused . | . . . . Traps Extracted . | . . . . Installed . | . . . . Triggered . | . . . . Machines | -11 -10 -10 -7 ---------- Run | Yrd Mat Sub Rec Machines Disabled . | . . . . Max in Single Turn . | . . . . Machines Repaired . | . . . . Machines Dismantled . | . . . . Machines Sabotaged . | . . . . Overloaded Fab Kills . | . . . . Hacking | -11 -10 -10 -7 --------- Run | Yrd Mat Sub Rec Machines Accessed 9 | . 6 . 3 Terminals 5 | . 5 . . Fabricators . | . . . . Repair Stations . | . . . . Recycling Units 4 | . 1 . 3 Scanalyzers . | . . . . Garrison Access . | . . . . Total Hacks 25 | . 21 . 4 Successful 16 | . 13 . 3 Failed 9 | . 8 . 1 Catastrophic . | . . . . Database Lockouts . | . . . . Manual 19 | . 15 . 4 Terminals 19 | . 19 . . Fabricators . | . . . . Repair Stations . | . . . . Recycling Units 6 | . 2 . 4 Scanalyzers . | . . . . Garrison Access . | . . . . Terminal Hacks 5 | . 5 . . Terminal Index 1 | . 1 . . Recycling Unit Index 1 | . 1 . . Locate Traps 3 | . 3 . . Fabricator Hacks . | . . . . Repair Station Hacks . | . . . . Recycling Unit Hacks . | . . . . Scanalyzer . | . . . . Garrison Access Hacks . | . . . . Unauthorized Hacks 11 | . 8 . 3 Terminals 7 | . 7 . . Botnet 1 | . 1 . . Operators 1 | . 1 . . Skim 5 | . 5 . . Fabricators . | . . . . Repair Stations . | . . . . Recycling Units 4 | . 1 . 3 Tunnel 4 | . 1 . 3 Scanalyzers . | . . . . Garrison Access . | . . . . Data Cores Recovered . | . . . . Used . | . . . . Hacking Detections 6 | . 5 . 1 Full Trace Events . | . . . . Feedback Events . | . . . . Feedback Blocked . | . . . . Robot Schematics Acquired . | . . . . Robots Built . | . . . . Authchips . | . . . . Time . | . . . . Total Robot Build Rating . | . . . . Part Schematics Acquired . | . . . . Parts Built . | . . . . Authchips . | . . . . Time . | . . . . Total Part Build Rating . | . . . . Part Studies Acquired . | . . . . Parts Repaired . | . . . . Time . | . . . . Parts Recycled . | . . . . Recycled Matter . | . . . . Retrieved Matter . | . . . . Retrieved Components . | . . . . Parts Scanalyzed . | . . . . Part Schematics Acquired . | . . . . Parts Damaged . | . . . . Bothacking | -11 -10 -10 -7 ------------ Run | Yrd Mat Sub Rec Used RIF Installer . | . . . . Robots Hacked . | . . . . Non-combat . | . . . . Combat . | . . . . Robot Hacks Applied . | . . . . Relay Couplers Released . | . . . . Fabnet Peak Effective % . | . . . . Robots Rewired . | . . . . Allies Hacked . | . . . . Hacks Repelled . | . . . . Allies | -11 -10 -10 -7 -------- Run | Yrd Mat Sub Rec Total Allies . | . . . . Largest Group . | . . . . Highest-Rated Group . | . . . . Highest-Rated Ally . | . . . . Total Orders . | . . . . Ally Attacks . | . . . . Total Damage . | . . . . Kills . | . . . . Allies Corrupted . | . . . . Allies Melted . | . . . . Intel | -11 -10 -10 -7 ------- Run | Yrd Mat Sub Rec Active Infowar (turns) . | . . . . Robot Analysis Total . | . . . . Derelict Logs Recovered 3 | . . 3 . Drone Launches . | . . . . Drone Recoveries . | . . . . Exploration | -11 -10 -10 -7 ------------- Run | Yrd Mat Sub Rec Turns Passed 3904 | 2 1874 1980 48 Spaces Moved 1475 | 1 676 761 37 Core 2 | . . 2 . Treads 863 | . 599 264 . Legs 78 | 1 77 . . Wheels 425 | . . 388 37 Hover . | . . . . Flight 107 | . . 107 . Fastest Speed 120 | 120 120 130 130 Average Speed 221 | 120 223 224 130 Slowest Speed 850 | 120 240 850 130 Overloaded Moves . | . . . . Propulsion Burnouts . | . . . . Robots Hopped . | . . . . Potential Cave-ins . | . . . . Cave-ins Triggered . | . . . . Exploration Rate (%) 27 | 2 71 26 9 Regions Visited 3 Branch Regions 2 Pre-discovered Areas 5 | . 2 . 3 Known Exits Taken 2 | . 1 1 . Unknown Exits Taken 1 | 1 . . . Scrap Searched . | . . . . Spaces Dug 15 | . 8 7 . Terrain Destroyed 17 | . 8 9 . Melee . | . . . . Projectile 17 | . 8 9 . AOE . | . . . . Terrain Rammed . | . . . . Walls Destroyed . | . . . . Machines Disabled . | . . . . Actions | -11 -10 -10 -7 --------- Run | Yrd Mat Sub Rec Total 1794 | 1 863 893 37 Wait 90 | . 58 32 . Move 1472 | . 675 760 37 Hop . | . . . . Pick Up 27 | . 19 8 . Fast Attach . | . . . . Attach 12 | . 4 8 . Detach 3 | . 1 2 . Swap 20 | 1 8 11 . Drop 11 | . 7 4 . Fire 157 | . 89 68 . Melee . | . . . . Ram . | . . . . Kick . | . . . . Crush 2 | . 2 . . Escape Stasis . | . . . . Rewire . | . . . . Trap . | . . . . Miscellaneous . | . . . . Route ------- -11/Scrapyard -10/Materials (discovered 4 exits: *Mat x2 / Min / *Sub) -10/Subcaves (discovered 3 exits: *Mat x2 / *Rec) -7/Recycling History --------- Turn | Location | Event 3 | -11/Scrapyard | Discovered new exit (range 0) 3 | -11/Scrapyard | Entered Materials 154 | -10/Materials | Discovered new exit (range 15) 311 | -10/Materials | Build established: Mutant 1549 | -10/Materials | Lost 3 parts (1p2w) 1609 | -10/Materials | Learned location of 1 exit from Storage 1653 | -10/Materials | Identified exit to Subcaves 1653 | -10/Materials | Identified exit to Mines 1685 | -10/Materials | Loaded intel: 14 trap records 1707 | -10/Materials | Learned location of Storage (-7) 1724 | -10/Materials | Identified exit to Materials 1732 | -10/Materials | Learned Storage security intel 1751 | -10/Materials | Learned location of 2 exits from Subcaves 1877 | -10/Materials | Entered Subcaves 1878 | -10/Subcaves | Identified exit to Materials 1878 | -10/Subcaves | Identified exit to Recycling 2049 | -10/Subcaves | Learned 8 Materials zone layouts 2507 | -10/Subcaves | Shifting Twisted Machinery released Enh. Flamer 2557 | -10/Subcaves | A Subdweller sparked back to life 2557 | -10/Subcaves | A Subdweller sparked back to life 2557 | -10/Subcaves | A Subdweller sparked back to life 2570 | -10/Subcaves | Core integrity fell below 50% 2578 | -10/Subcaves | Found Prototype Wheel 2875 | -10/Subcaves | Core integrity fell below 20% 2967 | -10/Subcaves | A swath of the cavern ceiling suddenly collapsed 3127 | -10/Subcaves | Learned Materials non-interactive machine intel 3857 | -10/Subcaves | Entered Recycling 3905 | -7/Recycling | Destroyed by Y-54 Guardian with Gatling Laser Last Messages --------------- U5-RUV(R) destroyed. Acquired 20 matter. Sub. Monowheel shoots sparks and powers down. Dropped Broken Sub. Monowheel. Acquired Sub. Beam Cannon. Acquired 23 matter. Acquired Sub. Monowheel. Subatomizers dissect the Sub. Optics. LOCATION=RECYCLING GOAL=ESCAPE Connecting with Recycling Unit... >>Force(Tunnel) DISCOVERED[-4/Armory] Connecting with Recycling Unit... >>Force(Tunnel) DISCOVERED[-8/Materials] Connecting with Recycling Unit... >>Force(Tunnel) DISCOVERED[-1/Access] Y-54 Guardian springs to life. Map ----- +----------------------------------------------------+ | ????????????????????????????????????????????? | | ????????????????????????????????????????????? | | ????????????????????????????????????????????? | | ????????????????????????????????????????????? | | ????????????????????????????????????????????? | | ????????????????????????????????????????????? | | ????????????????????????????????????????????? | | ????????????????????????????????????????????? | | ????????????????????????????????????????????? | | ????????????????????????????????????????????? | | ????????????#####???????????????????????????? | | ???#####????#"""#???????????????????????????? | | ???# ####"Y"####????????????????????????? | | ???# #########????????????????? | | ???# #????????????????? | | ???# #### #????????????????? | | ???# ###"Y"#####??# #????????????????? | | ???### ????#"""#??????# #????????????????? | | ???????????#####??????# #????????????????? | | ??????????????######### #????????????????? | | ??????????????# # #????????????????? | | ??????????????# ] # ###??????????????? | | ??????????????#! % # ""#??????????????? | | ??????????????# # Y"#??????????????? | | ??????????????#= ] # ""#??????????????? | | ??????????????# = # @ ###??????????????? | | ??????????????# = + #????????????????? | | ??????????????# # #????????????????? | | ??????????????# [ # #????????????????? | | ??????????????# [!! + #????????????????? | | ??????????????# ####Y#????????????????? | | ??????????????#########??? #???????????????? | | ?????????????????????????? ##???????????????? | | ?????????????????????????? #????????????????? | | ?????????????????????????? #????????????????? | | ?????????????????????????? #????????????????? | | ?????????????????????????? #????????????????? | | ?????????????????????????? #????????????????? | | ????????????????????????????????????????????? | | ????????????????????????????????????????????? | | ????????????????????????????????????????????? | | ????????????????????????????????????????????? | | ????????????????????????????????????????????? | | ????????????????????????????????????????????? | | ????????????????????????????????????????????? | | ????????????????????????????????????????????? | | ????????????????????????????????????????????? | | ????????????????????????????????????????????? | | ????????????????????????????????????????????? | | ????????????????????????????????????????????? | +----------------------------------------------------+ Best States ------------- Heat Dissipation 25 Energy Generation 10 Energy Capacity 125 Matter Stores 300 Matter Capacity 300 Sight Range 16 Terrain Scan Density 10 Armor Coverage 150 Evasion (%) 55 Recoil Reduction 2 Item Schematics ----------------- None Robot Schematics ------------------ None Fabricated ------------ Nothing Repaired ---------- Nothing Studied --------- None Alien Tech Used ----------------- None Achievements -------------- None Challenges ------------ None Game ------ Seed NullGodReactor Manual? 0 Play Time 00:16:19 Cumulative 78.0 hours Start 2026.07.27 @ 13:07:15 End 2026.07.27 @ 13:30:31 Sessions 1 Manual Loads 0 Difficulty Rogue Special Mode None Game No. 55 Rogue 54 Adventurer 1 Explorer 0 Win Type - Total 5 Types 3/0/1/1/0/0/0/0/0/0 Lore% 43 Gallery% 50 Achievement% 50 Wizard Run 0 Options --------- Layout 1 ASCII 0 Keyboard 0 Movement Mouse Keybinds 0 Fullscreen 1 Font 32/SmallcapsGlow Map View 50x35 Zoom Use 0% Tactical HUD 0 Map Filters NONE Filters NONE Steam 1 RUN: 84e61e59-8c7b-4179-a31e-cd0786540d3b